bitfinex/quotes_BTCUSD_20241211
["timestamp","ask_amount","ask_price","bid_price","bid_amount"]
[1733936460346,0.00116435,100650.0,100640.0,0.2485797]
[1733936460551,0.00116435,100650.0,100640.0,0.13473438]
[1733936461130,0.00116435,100650.0,100640.0,0.109364]
[1733936461262,0.00116435,100650.0,100640.0,0.01]
[1733936461464,0.19987235,100650.0,100640.0,0.01]
[1733936462096,0.3231808,100650.0,100640.0,0.01]
[1733936462300,0.4456808,100650.0,100640.0,0.01]
[1733936462459,0.4569323,100650.0,100640.0,0.01]
[1733936463303,0.4559323,100650.0,100640.0,0.004]
[1733936463519,0.4559323,100650.0,100620.0,0.22412338]
[1733936463520,0.8533753,100650.0,100620.0,0.22412338]
[1733936463735,0.0751,100630.0,100610.0,0.18846858]
[1733936463979,0.63536432,100630.0,100600.0,0.21384896]
[1733936464196,0.023,100620.0,100600.0,0.12476838]
[1733936464400,0.221769,100620.0,100600.0,0.12476838]
[1733936464635,0.221769,100620.0,100600.0,0.02537038]
[1733936464636,0.420538,100620.0,100600.0,0.02537038]
[1733936464861,0.420538,100620.0,100610.0,0.006]
[1733936465067,0.023,100620.0,100610.0,0.006]
[1733936465285,0.023,100620.0,100600.0,0.22417638]
[1733936465901,0.221768,100620.0,100600.0,0.12477338]
[1733936466110,0.221768,100620.0,100600.0,0.02537038]
[1733936466553,0.024,100620.0,100600.0,0.12977338]
[1733936466754,0.024,100620.0,100600.0,0.03437038]
[1733936466957,0.222775,100620.0,100600.0,0.03437038]
[1733936467168,0.42155,100620.0,100600.0,0.03437038]
[1733936467582,0.421551,100620.0,100600.0,0.03437038]
[1733936468013,0.56074077,100610.0,100600.0,0.009]
[1733936468236,0.44689545,100610.0,100600.0,0.009]
[1733936468649,0.72156846,100610.0,100600.0,0.009]
[1733936468854,0.72156846,100610.0,100600.0,0.005]
[1733936469272,0.60772314,100610.0,100600.0,0.00516493]
[1733936470302,0.60772314,100610.0,100600.0,0.00616493]
[1733936470501,0.40893614,100610.0,100600.0,0.00616493]
[1733936470711,0.16182769,100610.0,100600.0,0.24878363]
[1733936470923,0.1228,100630.0,100610.0,0.12475838]
[1733936471120,0.42632746,100640.0,100630.0,0.099373]
[1733936471121,0.02884546,100640.0,100630.0,0.099373]
[1733936471335,0.01968546,100640.0,100630.0,0.12002521]
[1733936471566,0.0569515,100650.0,100630.0,0.33323853]
[1733936471753,0.0569515,100650.0,100630.0,0.43260653]
[1733936471962,0.0569515,100650.0,100630.0,0.31876121]
[1733936472660,0.0569515,100650.0,100630.0,0.02981221]
[1733936472852,0.35597695,100650.0,100630.0,0.00444183]
[1733936473095,0.15725995,100650.0,100630.0,0.00444183]
[1733936473288,0.35596795,100650.0,100630.0,0.00444183]
[1733936473774,0.55467595,100650.0,100630.0,0.00444183]
[1733936473924,0.63087595,100650.0,100630.0,0.00444183]
[1733936474167,0.1331515,100650.0,100630.0,0.02981221]
[1733936474382,0.003,100640.0,100630.0,0.22855421]
[1733936474574,0.0569515,100650.0,100630.0,0.12918121]
[1733936474974,0.0599515,100650.0,100630.0,0.12918121]
[1733936475342,0.0569515,100650.0,100630.0,0.12918121]
[1733936475555,0.2556625,100650.0,100630.0,0.03181221]
[1733936475972,0.2556625,100650.0,100630.0,0.02981221]
[1733936476165,0.2586625,100650.0,100630.0,0.02981221]
[1733936476365,0.2586625,100650.0,100630.0,0.00444183]
[1733936476483,0.26902612,100650.0,100630.0,0.00644183]
[1733936476686,0.26902612,100650.0,100630.0,0.03181221]
[1733936476890,0.07031512,100650.0,100630.0,0.02981221]
[1733936477092,0.02461512,100650.0,100630.0,0.40007744]
[1733936477337,0.02461512,100650.0,100640.0,0.12473438]
[1733936477574,0.02461512,100650.0,100640.0,0.02975654]
[1733936478437,0.02177947,100650.0,100640.0,0.02975654]
[1733936478872,0.02177947,100650.0,100640.0,0.03175654]
[1733936479640,0.02177947,100650.0,100640.0,0.03375654]
[1733936480493,0.02177947,100650.0,100640.0,0.13312054]
[1733936481565,0.02177947,100650.0,100640.0,0.28312054]
[1733936481768,0.02177947,100650.0,100640.0,0.45365111]
[1733936482015,0.02177947,100650.0,100640.0,0.28312054]
[1733936483070,0.01141585,100650.0,100640.0,0.28312054]
[1733936483586,0.01141585,100650.0,100640.0,0.28531362]
[1733936484634,0.01141585,100650.0,100640.0,0.28312054]
[1733936484874,0.01141585,100650.0,100640.0,0.28531362]
[1733936485371,0.01141585,100650.0,100640.0,0.28312054]
[1733936486783,0.01141585,100650.0,100640.0,0.28531362]
[1733936487197,0.01141585,100650.0,100640.0,0.28312054]
[1733936488224,0.01041585,100650.0,100640.0,0.28312054]
[1733936493907,0.01041585,100650.0,100640.0,0.00838616]
[1733936494107,0.3819323,100650.0,100640.0,0.00838616]
[1733936494311,0.01041585,100650.0,100640.0,0.10775016]
[1733936494510,0.01041585,100650.0,100640.0,0.40495307]
[1733936494716,0.01041585,100650.0,100640.0,0.48495956]
[1733936494882,0.01041585,100650.0,100640.0,0.4805734]
[1733936495083,0.01041585,100650.0,100640.0,0.4785734]
[1733936495285,0.01041585,100650.0,100640.0,0.42163679]
[1733936495484,0.01041585,100650.0,100640.0,0.56963679]
[1733936495485,0.01341585,100650.0,100640.0,0.56963679]
[1733936495687,0.01041585,100650.0,100640.0,0.96929187]
[1733936495875,0.01141585,100650.0,100640.0,0.79566739]
[1733936496072,0.01141585,100650.0,100640.0,0.44854662]
[1733936496297,0.01141585,100650.0,100640.0,0.27873438]
[1733936496731,0.01141585,100650.0,100640.0,0.57573679]
[1733936497185,0.01141585,100650.0,100640.0,0.56973679]
[1733936497558,0.01041585,100650.0,100640.0,0.56973679]
[1733936497917,0.01141585,100650.0,100640.0,0.57573679]
[1733936498323,0.01041585,100650.0,100640.0,0.56973679]
[1733936498707,0.01141585,100650.0,100640.0,0.57073679]
[1733936498909,0.01041585,100650.0,100640.0,0.56573679]
[1733936499233,0.01041585,100650.0,100640.0,0.57773679]
[1733936499443,0.01141585,100650.0,100640.0,0.57773679]
[1733936499649,0.01141585,100650.0,100640.0,0.57373679]
[1733936499826,0.01141585,100650.0,100640.0,0.57973679]
[1733936500371,0.02103806,100670.0,100650.0,0.22406538]
[1733936500591,0.02158903,100670.0,100650.0,0.33765934]
[1733936501195,0.02158903,100670.0,100650.0,0.32341438]
[1733936501818,0.02158903,100670.0,100650.0,0.32441438]
[1733936501994,0.02158903,100670.0,100650.0,0.32541438]
[1733936503011,0.34041546,100670.0,100650.0,0.002]
[1733936503189,0.0822,100660.0,100650.0,0.00850158]
[1733936503390,0.0822,100660.0,100650.0,0.002]
[1733936504292,0.1052,100660.0,100650.0,0.002]
[1733936504644,0.1052,100660.0,100650.0,0.001]
[1733936504876,0.303888,100660.0,100650.0,0.007]
[1733936505074,0.40519645,100660.0,100650.0,0.007]
[1733936505277,0.40519645,100660.0,100650.0,0.00534778]
[1733936505476,0.45509645,100660.0,100650.0,0.00634778]
[1733936505713,0.45509645,100660.0,100650.0,0.01034778]
[1733936505848,1.04662003,100660.0,100650.0,0.01034778]
[1733936506273,0.93302607,100660.0,100650.0,0.00634778]
[1733936507073,1.04662003,100660.0,100650.0,0.00634778]
[1733936507518,0.93302607,100660.0,100650.0,0.00634778]
[1733936507734,0.95212534,100660.0,100650.0,0.00434778]
[1733936508070,0.221709,100650.0,100620.0,0.23834734]
[1733936508280,0.52073345,100650.0,100620.0,0.23834734]
[1733936508487,0.12330845,100650.0,100630.0,0.13896434]
[1733936508701,0.12330845,100650.0,100630.0,0.23833734]
[1733936509127,0.12630845,100650.0,100630.0,0.23833734]
[1733936509364,0.12630845,100650.0,100630.0,0.12474338]
[1733936510406,0.12330845,100650.0,100630.0,0.12474338]
[1733936510807,0.12630845,100650.0,100630.0,0.12474338]
[1733936511345,0.12630845,100650.0,100630.0,0.02537038]
[1733936511701,0.12630845,100650.0,100640.0,0.00434779]
[1733936511702,0.32501745,100650.0,100640.0,0.00434779]
[1733936512132,0.12630845,100650.0,100630.0,0.13896434]
[1733936512335,0.12630845,100650.0,100640.0,0.00434779]
[1733936513087,0.10330845,100650.0,100640.0,0.00434779]
[1733936513512,0.10030845,100650.0,100640.0,0.00434779]
[1733936513685,0.29901645,100650.0,100640.0,0.00434779]
[1733936513888,0.15219927,100660.0,100640.0,0.24266913]
[1733936514235,0.10139995,100670.0,100650.0,0.21294596]
[1733936514353,0.02039995,100670.0,100650.0,0.22406638]
[1733936514564,0.02039995,100670.0,100660.0,0.00437272]
[1733936515474,0.02039995,100670.0,100660.0,0.00649864]
[1733936516302,0.00055097,100670.0,100660.0,0.00649864]
[1733936516508,0.00055097,100670.0,100660.0,0.2194366]
[1733936516710,0.00055097,100670.0,100660.0,0.1200926]
[1733936516915,0.00355097,100670.0,100660.0,0.00649864]
[1733936517113,0.00355097,100670.0,100660.0,0.10584264]
[1733936517557,0.00055097,100670.0,100660.0,0.099344]
[1733936517960,0.00055097,100670.0,100660.0,0.101344]
[1733936519347,0.00055097,100670.0,100660.0,0.102344]
[1733936520906,0.00055097,100670.0,100660.0,0.003]
[1733936521873,0.00055097,100670.0,100660.0,0.102344]
[1733936522291,0.00055097,100670.0,100660.0,0.24130834]
[1733936522721,0.00055097,100670.0,100660.0,0.39130834]
[1733936522897,0.00055097,100670.0,100660.0,0.48026989]
[1733936524927,0.00055097,100670.0,100660.0,0.66187834]
[1733936525265,0.00055097,100670.0,100660.0,0.79513867]
[1733936527599,0.00055097,100670.0,100660.0,0.66180554]
[1733936528014,0.00055097,100670.0,100660.0,0.66080554]
[1733936528218,0.00055097,100670.0,100660.0,0.66480554]
[1733936529279,0.00055097,100670.0,100660.0,0.66280554]
[1733936529445,0.00155097,100670.0,100660.0,0.66880554]
[1733936529644,0.00155097,100670.0,100660.0,0.66869662]
[1733936530101,0.00155097,100670.0,100660.0,0.80186637]
[1733936530303,0.00155097,100670.0,100660.0,1.09302]
[1733936530495,0.00155097,100670.0,100660.0,0.97942604]
[1733936531142,0.00155097,100670.0,100660.0,0.20545021]
[1733936531348,0.20021897,100670.0,100660.0,0.01]
[1733936531537,0.00155097,100670.0,100660.0,0.01]
[1733936531939,0.20021897,100670.0,100660.0,0.01]
[1733936532473,0.30052742,100670.0,100660.0,0.01]
[1733936533144,0.30052742,100670.0,100660.0,0.000218]
[1733936533399,0.56872138,100670.0,100660.0,0.000218]
[1733936533605,0.993351,100670.0,100660.0,0.000218]
[1733936533817,1.28557583,100670.0,100660.0,0.000218]
[1733936534037,1.56485565,100670.0,100660.0,0.000218]
[1733936534249,1.56485565,100670.0,100610.0,0.12475738]
[1733936534250,0.52908,100640.0,100610.0,0.12475738]
[1733936534461,0.43064545,100640.0,100610.0,0.12475738]
[1733936534669,0.62938845,100640.0,100610.0,0.22414538]
[1733936534956,0.62938845,100640.0,100610.0,0.43712834]
[1733936535159,0.1316,100640.0,100620.0,0.22413238]
[1733936535362,0.1316,100640.0,100620.0,0.33871614]
[1733936535514,0.1316,100640.0,100620.0,0.22512218]
[1733936536116,0.1316,100640.0,100620.0,0.22412838]
[1733936536323,0.74697141,100640.0,100610.0,0.12575338]
[1733936536521,0.198747,100630.0,100610.0,0.001]
[1733936536723,0.198747,100630.0,100610.0,0.02637038]
[1733936537050,0.397497,100630.0,100610.0,0.001]
[1733936537257,0.198748,100630.0,100610.0,0.02537038]
[1733936537468,0.63038745,100640.0,100610.0,0.12476238]
[1733936537671,0.82913045,100640.0,100610.0,0.12476238]
[1733936537875,0.82913045,100640.0,100610.0,0.12492673]
[1733936538078,0.82813045,100640.0,100610.0,0.12492673]
[1733936538515,0.198748,100630.0,100610.0,0.00116435]
[1733936538730,0.81017641,100630.0,100610.0,0.00016435]
[1733936538934,0.49781545,100630.0,100610.0,0.00016435]
[1733936539135,0.75693288,100640.0,100610.0,0.12492673]
[1733936539342,0.44020845,100640.0,100620.0,0.21297196]
[1733936539549,0.3399,100640.0,100610.0,0.22523118]
[1733936539771,0.94727241,100640.0,100610.0,0.12492173]
[1733936540002,0.94727241,100640.0,100610.0,0.22431073]
[1733936540003,0.001,100630.0,100610.0,0.22431073]
[1733936540198,0.001,100630.0,100620.0,0.099383]
[1733936540402,0.43520845,100640.0,100620.0,0.099383]
[1733936540601,0.45967202,100640.0,100610.0,0.43729369]
[1733936540811,0.45967202,100640.0,100620.0,0.099382]
[1733936541567,0.23176357,100640.0,100620.0,0.282458]
[1733936541752,0.004,100640.0,100630.0,0.12474338]
[1733936542379,0.005,100640.0,100630.0,0.12474338]
[1733936542805,0.001,100640.0,100630.0,0.12474338]
[1733936543206,0.005,100640.0,100630.0,0.12474338]
[1733936543411,0.004,100640.0,100630.0,0.12474338]
[1733936543639,0.004,100640.0,100630.0,0.38833734]
[1733936543861,0.004,100640.0,100630.0,0.48864579]
[1733936544066,0.005,100640.0,100630.0,0.56714579]
[1733936544265,0.005,100640.0,100630.0,0.71714579]
[1733936544468,0.129,100700.0,100670.0,0.22402838]
[1733936544671,0.22930845,100700.0,100680.0,0.21291796]
[1733936544876,0.22930845,100700.0,100680.0,0.22400938]
[1733936544877,0.14875596,100700.0,100680.0,0.22400938]
[1733936545284,0.14875596,100700.0,100680.0,0.32332938]
[1733936545493,0.14875596,100700.0,100680.0,0.22400938]
[1733936545693,0.04875131,100700.0,100680.0,0.32332838]
[1733936546008,0.05675131,100700.0,100680.0,0.22400838]
[1733936546329,0.05675131,100700.0,100680.0,0.32332738]
[1733936546532,0.06075131,100700.0,100680.0,0.43692234]
[1733936546888,0.01255131,100700.0,100690.0,0.099314]
[1733936547091,0.01255131,100700.0,100690.0,0.23827834]
[1733936547292,0.01455131,100700.0,100680.0,0.13896434]
[1733936547527,0.11485976,100700.0,100670.0,0.37402838]
[1733936547790,0.11285976,100700.0,100670.0,0.37402838]
[1733936547983,0.61170072,100700.0,100660.0,0.12470638]
[1733936548212,0.1279,100690.0,100670.0,0.02537038]
[1733936548370,0.10385976,100700.0,100670.0,0.22403338]
[1733936548549,0.10385976,100700.0,100670.0,0.22402738]
[1733936548550,0.30247376,100700.0,100670.0,0.22402738]
[1733936548760,0.30647376,100700.0,100670.0,0.22402738]
[1733936548961,0.30047376,100700.0,100670.0,0.12469838]
[1733936549187,0.49808376,100700.0,100670.0,0.22402838]
[1733936549396,0.49808376,100700.0,100670.0,0.12569838]
[1733936549603,0.49808376,100700.0,100670.0,0.12469838]
[1733936550046,0.50108376,100700.0,100670.0,0.12469838]
[1733936550211,0.10385976,100700.0,100670.0,0.32336138]
[1733936550867,0.30246976,100700.0,100670.0,0.22402838]
[1733936551070,0.50108876,100700.0,100670.0,0.12469838]
[1733936551222,0.50208876,100700.0,100670.0,0.12469838]
[1733936552006,0.70071176,100700.0,100670.0,0.12469838]
[1733936552221,0.70070976,100700.0,100670.0,0.12469838]
[1733936552765,0.52155533,100700.0,100670.0,0.12469838]
[1733936552959,0.72017733,100700.0,100670.0,0.12469838]
[1733936553398,0.72017733,100700.0,100660.0,0.29898045]
[1733936553399,0.61117341,100690.0,100660.0,0.02537038]
[1733936553619,0.04885509,100700.0,100670.0,0.12469938]
[1733936553824,0.34777554,100700.0,100670.0,0.22402838]
[1733936554030,0.54639554,100700.0,100670.0,0.12469938]
[1733936554239,0.19863,100690.0,100670.0,0.02537038]
[1733936554450,0.19863,100690.0,100660.0,0.32435283]
[1733936554665,0.19863,100690.0,100660.0,0.32635283]
[1733936554868,0.49757945,100690.0,100660.0,0.12570738]
[1733936555073,0.49757945,100690.0,100660.0,0.12470738]
[1733936555277,0.61117341,100690.0,100660.0,0.02537038]
[1733936555490,0.11359396,100670.0,100640.0,0.12472938]
[1733936555716,0.11359396,100670.0,100640.0,0.02537038]
[1733936555717,0.198691,100660.0,100640.0,0.02537038]
[1733936555917,0.397389,100660.0,100640.0,0.02537038]
[1733936556338,0.29901645,100650.0,100620.0,0.22412038]
[1733936556549,0.19873,100640.0,100620.0,0.02537038]
[1733936556985,0.49777645,100640.0,100620.0,0.02537038]
[1733936557195,0.43550457,100640.0,100620.0,0.00016435]
[1733936557406,0.49777645,100640.0,100620.0,0.00016435]
[1733936557660,0.29903845,100640.0,100620.0,0.02553473]
[1733936558280,0.30203845,100640.0,100620.0,0.02553473]
[1733936558508,0.50177645,100640.0,100620.0,0.02553473]
[1733936558939,0.50177445,100640.0,100620.0,0.00016435]
[1733936559143,0.50177445,100640.0,100620.0,0.02553473]
[1733936559347,0.70051545,100640.0,100620.0,0.00016435]
[1733936559549,0.57967445,100640.0,100620.0,0.00016435]
[1733936560427,0.77841645,100640.0,100620.0,0.00016435]
[1733936561078,0.198747,100630.0,100620.0,0.00016435]
[1733936561302,0.77841645,100640.0,100620.0,0.00016435]
[1733936561519,0.57967445,100640.0,100620.0,0.00016435]
[1733936561938,0.57667445,100640.0,100620.0,0.00016435]
[1733936562145,0.10030845,100640.0,100620.0,0.12491773]
[1733936562368,0.10030845,100640.0,100620.0,0.02753473]
[1733936563011,0.26830772,100650.0,100630.0,0.12474338]
[1733936563214,0.30360845,100650.0,100630.0,0.02537038]
[1733936563422,0.50231745,100650.0,100630.0,0.02537038]
[1733936563853,0.003,100640.0,100630.0,0.02537038]
[1733936564034,0.004,100640.0,100630.0,0.02537038]
[1733936564489,0.003,100640.0,100630.0,0.02537038]
[1733936564904,0.003,100640.0,100630.0,0.02637038]
[1733936565155,0.50431745,100650.0,100630.0,0.02537038]
[1733936565387,0.30360845,100650.0,100630.0,0.12474338]
[1733936565597,0.004,100640.0,100630.0,0.12474338]
[1733936565803,0.004,100640.0,100630.0,0.58077519]
[1733936566016,0.004,100640.0,100630.0,0.37505183]
[1733936566460,0.004,100640.0,100630.0,0.27474338]
[1733936566669,0.001,100640.0,100630.0,0.27474338]
[1733936567080,0.001,100640.0,100630.0,0.37605183]
[1733936567288,0.001,100640.0,100630.0,0.5797815]
[1733936567496,0.007,100650.0,100640.0,0.12473438]
[1733936567919,0.009,100650.0,100640.0,0.12473438]
[1733936568341,0.27294999,100670.0,100640.0,0.2250859]
[1733936568550,0.07427299,100670.0,100650.0,0.12472038]
[1733936568756,0.29936906,100680.0,100650.0,0.22406738]
[1733936568989,0.39967751,100680.0,100650.0,0.02537038]
[1733936569217,0.397358,100670.0,100650.0,0.02537038]
[1733936569423,0.79701251,100680.0,100650.0,0.02537038]
[1733936569631,0.8218256,100680.0,100650.0,0.02537038]
[1733936569831,0.198669,100670.0,100650.0,0.02537038]
[1733936570036,0.207669,100670.0,100650.0,0.02637038]
[1733936570455,0.198669,100670.0,100650.0,0.02537038]
[1733936570683,0.52670712,100670.0,100660.0,0.00435353]
[1733936570888,0.32197745,100670.0,100660.0,0.00435353]
[1733936571297,0.32497745,100670.0,100660.0,0.00435353]
[1733936571920,0.10485942,100670.0,100640.0,0.32345038]
[1733936572130,0.00455097,100670.0,100660.0,0.00435353]
[1733936572338,0.00455097,100670.0,100650.0,0.12911632]
[1733936572542,0.00455097,100670.0,100660.0,0.00435353]
[1733936573026,0.00755097,100670.0,100660.0,0.00435353]
[1733936573637,0.00755097,100670.0,100660.0,0.10369753]
[1733936573850,0.00755097,100670.0,100660.0,0.00435353]
[1733936573851,0.00655097,100670.0,100660.0,0.00435353]
[1733936574080,0.00755097,100670.0,100660.0,0.00435353]
[1733936574493,0.00655097,100670.0,100660.0,0.00435353]
[1733936574897,0.00755097,100670.0,100660.0,0.00435353]
[1733936576777,0.00755097,100670.0,100660.0,0.02972391]
[1733936576982,0.00755097,100670.0,100660.0,0.48575547]
[1733936577190,0.00755097,100670.0,100660.0,0.5797525]
[1733936577394,0.00755097,100670.0,100660.0,0.37502283]
[1733936577803,0.00755097,100670.0,100660.0,0.5797525]
[1733936578012,0.00755097,100670.0,100660.0,0.6553525]
[1733936578222,0.00755097,100670.0,100660.0,0.8511525]
[1733936578429,0.00655097,100670.0,100660.0,0.8511525]
[1733936578628,0.00655097,100670.0,100660.0,0.7021525]
[1733936578940,0.00655097,100670.0,100660.0,0.49742283]
[1733936578941,0.00055097,100670.0,100660.0,0.49742283]
[1733936579171,0.00055097,100670.0,100660.0,0.7021525]
[1733936579379,0.00055097,100670.0,100660.0,0.6347241]
[1733936579561,0.00055097,100670.0,100660.0,0.6337241]
[1733936579792,0.00055097,100670.0,100660.0,0.49742283]
[1733936579975,0.00155097,100670.0,100660.0,0.6407241]
[1733936580205,0.00155097,100670.0,100660.0,0.6457241]
[1733936580687,0.00155097,100670.0,100660.0,0.46362283]
[1733936580887,0.00155097,100670.0,100660.0,0.5999241]
[1733936582554,0.00155097,100670.0,100660.0,0.18837038]
[1733936582805,0.00155097,100670.0,100660.0,0.28771438]
[1733936584491,0.00155097,100670.0,100660.0,0.13771438]
[1733936584727,0.00155097,100670.0,100660.0,0.60241741]
[1733936584932,0.00155097,100670.0,100660.0,0.6014241]
[1733936590846,0.00155097,100670.0,100660.0,0.62621416]
[1733936593691,0.00155097,100670.0,100660.0,0.6014241]
[1733936594698,0.00155097,100670.0,100660.0,0.5243241]
[1733936594901,0.00155097,100670.0,100660.0,0.42401565]
[1733936595315,0.00155097,100670.0,100660.0,0.5243241]
[1733936595743,0.00155097,100670.0,100660.0,0.6032241]
[1733936595967,0.00155097,100670.0,100660.0,0.73952537]
[1733936596191,0.00155097,100670.0,100660.0,1.17774227]
[1733936596401,0.00155097,100670.0,100660.0,1.20074227]
[1733936597048,0.00155097,100670.0,100660.0,1.064441]
[1733936597268,0.00055097,100670.0,100660.0,1.056441]
[1733936597483,0.00955097,100670.0,100660.0,1.19374227]
[1733936597695,0.00955097,100670.0,100660.0,1.056441]
[1733936598107,9.7e-07,100670.0,100660.0,1.19274227]
[1733936598237,9.7e-07,100670.0,100660.0,1.32051762]
[1733936598449,9.7e-07,100670.0,100660.0,1.34042621]
[1733936599302,0.00100097,100670.0,100660.0,1.06782367]
[1733936600226,9.7e-07,100670.0,100660.0,1.06782367]
[1733936600423,0.05740096,100710.0,100700.0,0.02537038]
[1733936600576,0.05756621,100710.0,100700.0,0.26097565]
[1733936601721,0.05856621,100710.0,100700.0,0.26097565]
[1733936602128,0.04986525,100710.0,100700.0,0.26097565]
[1733936602566,0.04986525,100710.0,100700.0,0.26197565]
[1733936602973,0.04986525,100710.0,100700.0,0.26297565]
[1733936603179,0.04986525,100710.0,100700.0,0.27667438]
[1733936604647,0.0491762,100710.0,100700.0,0.27667438]
[1733936605822,0.0491762,100710.0,100700.0,0.17737038]
[1733936606446,0.0491762,100710.0,100700.0,0.27667438]
[1733936607278,0.0491762,100710.0,100700.0,0.41297565]
[1733936607702,0.0491762,100710.0,100700.0,0.17737038]
[1733936608316,0.0491762,100710.0,100700.0,0.002]
[1733936611037,0.2477662,100710.0,100700.0,0.002]
[1733936611250,0.0491762,100710.0,100700.0,0.002]
[1733936612491,0.2477662,100710.0,100700.0,0.002]
[1733936613828,0.86430554,100710.0,100700.0,0.002]
[1733936614031,0.72800427,100710.0,100700.0,0.002]
[1733936614566,0.81687922,100710.0,100700.0,0.001]
[1733936614939,0.81687922,100710.0,100680.0,0.23562527]
[1733936614940,1.41738922,100710.0,100680.0,0.23562527]
[1733936615123,0.00588328,100700.0,100690.0,0.13630127]
[1733936615355,0.83227565,100710.0,100690.0,0.13630127]
[1733936615557,0.0058836,100700.0,100680.0,0.45963465]
[1733936615760,0.63367465,100710.0,100680.0,0.36031065]
[1733936615935,0.00588361,100700.0,100680.0,0.45963065]
[1733936616139,0.63367465,100710.0,100680.0,0.45963065]
[1733936616339,0.00588364,100700.0,100690.0,0.001]
[1733936616556,0.63367465,100710.0,100680.0,0.45963065]
[1733936616765,0.00588391,100700.0,100680.0,0.46063065]
[1733936616967,0.63367465,100710.0,100690.0,0.099314]
[1733936617174,0.00588391,100700.0,100690.0,0.51029365]
[1733936617381,0.2524762,100710.0,100690.0,0.51029365]
[1733936617586,0.2524762,100710.0,100700.0,0.23560527]
[1733936617587,0.00016525,100710.0,100700.0,0.23560527]
[1733936617796,0.00016525,100710.0,100700.0,0.12467438]
[1733936618209,0.00016525,100710.0,100690.0,0.27467838]
[1733936618418,0.00016525,100710.0,100690.0,0.41098165]
[1733936618638,0.00016525,100710.0,100690.0,0.51028965]
[1733936619513,0.00016525,100710.0,100690.0,0.60959965]
[1733936619652,0.00016525,100710.0,100690.0,0.51028965]
[1733936620080,0.00016525,100710.0,100700.0,0.02537038]
[1733936620287,0.00016525,100710.0,100700.0,0.26097565]
[1733936620674,0.00016525,100710.0,100700.0,0.12467438]
[1733936621437,0.00016525,100710.0,100700.0,0.26097565]
[1733936621602,0.00016525,100710.0,100700.0,0.41097565]
[1733936621810,0.00016525,100710.0,100700.0,0.27467438]
[1733936623354,0.00016525,100710.0,100700.0,0.27567438]
[1733936625182,0.00016525,100710.0,100700.0,0.27667438]
[1733936627111,0.00016525,100710.0,100700.0,0.41289533]
[1733936627316,0.00016525,100710.0,100700.0,0.51320378]
[1733936627523,0.00016525,100710.0,100700.0,0.59180378]
[1733936628440,0.00016525,100710.0,100700.0,0.59080378]
[1733936628691,0.00016525,100710.0,100700.0,0.58980378]
[1733936628890,0.00016525,100710.0,100700.0,0.59480378]
[1733936630373,0.00016525,100710.0,100700.0,0.6866895]
[1733936631529,0.00016525,100710.0,100700.0,0.3715601]
[1733936631768,0.00016525,100710.0,100700.0,0.18337038]
[1733936632042,0.00016525,100710.0,100700.0,0.13267438]
[1733936632290,0.00016525,100710.0,100700.0,0.26889533]
[1733936636562,0.00016525,100710.0,100700.0,0.13267438]
[1733936637146,0.07926525,100710.0,100700.0,0.008]
[1733936637348,0.7468078,100710.0,100700.0,0.008]
[1733936637566,1.3585436,100710.0,100700.0,0.008]
[1733936637790,1.12686095,100710.0,100700.0,0.008]
[1733936638010,1.20553133,100710.0,100700.0,0.008]
[1733936638222,1.20553133,100710.0,100700.0,0.003]
[1733936638429,0.0469,100680.0,100660.0,0.22404538]
[1733936638634,0.0469,100680.0,100660.0,0.32338438]
[1733936639069,0.0469,100680.0,100670.0,0.15]
[1733936639301,0.0469,100680.0,100670.0,0.249334]
[1733936639514,0.16770589,100690.0,100680.0,0.099324]
[1733936639717,0.65187318,100700.0,100680.0,0.198644]
[1733936639937,0.3288,100700.0,100680.0,0.3602438]
[1733936640156,0.1255,100700.0,100690.0,0.099314]
[1733936640353,0.1255,100700.0,100680.0,0.12469038]
[1733936640557,0.1255,100700.0,100680.0,0.22401438]
[1733936640776,0.1255,100700.0,100680.0,0.198644]
[1733936641447,0.62304545,100700.0,100670.0,0.348653]
[1733936641672,0.10030845,100690.0,100670.0,0.15]
[1733936641893,0.0809,100680.0,100660.0,0.44669886]
[1733936642097,0.0809,100680.0,100660.0,0.34736086]
[1733936642507,0.0809,100680.0,100660.0,0.22404738]
[1733936642743,0.17035598,100690.0,100670.0,0.2609378]
[1733936642954,0.17035598,100690.0,100670.0,0.22403238]
[1733936643364,0.0813,100690.0,100670.0,0.22403238]
[1733936644139,0.0813,100690.0,100670.0,0.32336138]
[1733936644384,0.77497307,100700.0,100680.0,0.099324]
[1733936644586,0.15053309,100700.0,100680.0,0.3602478]
[1733936644901,0.15053309,100700.0,100680.0,0.32333838]
[1733936645102,0.06873309,100700.0,100680.0,0.22401438]
[1733936645330,0.06873309,100700.0,100690.0,0.099314]
[1733936645577,0.02183309,100700.0,100690.0,0.099314]
[1733936645781,0.27925525,100710.0,100690.0,0.099314]
[1733936645990,0.5781537,100710.0,100680.0,0.4595668]
[1733936646196,0.3795637,100710.0,100680.0,0.32333338]
[1733936646405,0.20334855,100710.0,100690.0,0.099313]
[1733936646608,0.1030401,100710.0,100690.0,0.4595358]
[1733936647251,0.0225401,100710.0,100700.0,0.23553742]
[1733936647454,0.0225401,100710.0,100700.0,0.099304]
[1733936648269,0.0225401,100710.0,100700.0,0.100304]
[1733936649191,0.0225401,100710.0,100700.0,0.001]
[1733936649598,0.32143855,100710.0,100700.0,0.001]
[1733936651266,0.0225401,100710.0,100700.0,0.001]
[1733936651480,0.0225401,100710.0,100700.0,0.23653742]
[1733936651690,0.0225401,100710.0,100700.0,0.100304]
[1733936651910,0.0225401,100710.0,100700.0,0.001]
[1733936652319,0.12284855,100710.0,100700.0,0.001]
[1733936652527,0.32143855,100710.0,100700.0,0.001]
[1733936652729,0.32143855,100710.0,100680.0,0.30330738]
[1733936652941,0.52003655,100710.0,100680.0,0.30330738]
[1733936653168,0.52003655,100710.0,100700.0,0.001]
[1733936653790,0.12284855,100710.0,100700.0,0.001]
[1733936653998,0.32143855,100710.0,100700.0,0.001]
[1733936654432,0.32143855,100710.0,100680.0,0.30330638]
[1733936654642,0.52002855,100710.0,100680.0,0.20398738]
[1733936654848,0.32143855,100710.0,100680.0,0.30330538]
[1733936655506,0.32143855,100710.0,100680.0,0.5388578]
[1733936656585,0.32143855,100710.0,100680.0,0.40262438]
[1733936656797,0.32143855,100710.0,100680.0,0.22400538]
[1733936657020,0.52002855,100710.0,100680.0,0.22400538]
[1733936657429,0.37861745,100700.0,100680.0,0.15]
[1733936657634,0.42411745,100700.0,100680.0,0.15]
[1733936657849,0.22550845,100700.0,100680.0,0.249324]
[1733936658054,0.22550845,100700.0,100680.0,0.348642]
[1733936658270,0.0455,100700.0,100680.0,0.51030217]
[1733936658473,0.0455,100700.0,100680.0,0.37400738]
[1733936658687,0.24411,100700.0,100680.0,0.151]
[1733936658892,0.32061,100700.0,100680.0,0.151]